[Event "3rd FIDE WCCC Blitz G10 2019"]
[Site "Minsk"]
[Date "2019.08.18"]
[Round "6.5"]
[White "Fedorova, Olesya"]
[Black "Zubkovskaya, Ekaterina"]
[Result "1-0"]
[ECO "C25"]
[WhiteElo "1524"]
[BlackElo "1363"]
[Annotator "NA"]
[PlyCount "117"]
[EventDate "2019.08.18"]
[EventType "swiss"]
[EventCountry "BLR"]
[SourceTitle "playchess.com"]
[Source "ChessBase"]
[SourceQuality "1"]
[TimeControl "300+2"]

1. e4 {[%emt 0:00:00]} e5 {[%emt 0:00:00]} 2. Nc3 {[%emt 0:00:03]} Bc5 {[%emt 0:00:03]} 3. f4 {[%emt 0:00:03]} d6 {[%emt 0:00:06]} 4. Nf3 {[%emt 0:00:03]} exf4 {[%emt 0:00:06]} 5. d4 {[%emt 0:00:01]} Bb4 {[%emt 0:00:05]} 6. Bxf4 {[%emt 0:00:08]} Nf6 {[%emt 0:00:02]} 7. Bd3 {[%emt 0:00:02]} O-O {[%emt 0:00:02]} 8. O-O {[%emt 0:00:01]} Bg4 {[%emt 0:00:08]} 9. h3 {[%emt 0:00:05]} Bh5 {[%emt 0:00:02]} 10. Bg5 {[%emt 0:00:21]} Bxc3 {[%emt 0:00:30]} 11. bxc3 {[%emt 0:00:03]} h6 {[%emt 0:00:05]} 12. Bh4 {[%emt 0:00:04]} g5 {[%emt 0:00:24]} 13. Bg3 {[%emt 0:00:07]} Bg6 {[%emt 0:00:07]} 14. Nd2 {[%emt 0:00:16]} Nbd7 {[%emt 0:00:12]} 15. e5 {[%emt 0:00:20]} dxe5 {[%emt 0:00:22]} 16. dxe5 {[%emt 0:00:07]} Bxd3 {[%emt 0:00:28]} 17. cxd3 {[%emt 0:00:03]} Nh7 {[%emt 0:00:03]} 18. Ne4 {[%emt 0:00:10]} f5 {[%emt 0:00:44]} 19. exf6 {[%emt 0:00:16]} Nhxf6 {[%emt 0:00:08]} 20. Nxf6+ {[%emt 0:00:03]} Nxf6 {[%emt 0:00:02]} 21. Qb3+ {[%emt 0:00:07]} Kg7 {[%emt 0:00:27]} 22. Qxb7 {[%emt 0:00:10]} Rf7 {[%emt 0:00:03]} 23. Be5 {[%emt 0:00:14]} Rb8 {[%emt 0:00:31]} 24. Qxa7 {[%emt 0:00:36]} Rb6 {[%emt 0:00:04]} 25. d4 {[%emt 0:00:23]} Kg6 {[%emt 0:00:22]} 26. Qa4 {[%emt 0:00:18]} Kg7 {[%emt 0:00:10]} 27. Rf2 {[%emt 0:00:12]} Re6 {[%emt 0:00:09]} 28. Raf1 {[%emt 0:00:07]} c5 {[%emt 0:00:16]} 29. Qc4 {[%emt 0:00:19]} Qd7 {[%emt 0:00:03]} 30. Qxc5 {[%emt 0:00:29]} Rc6 {[%emt 0:00:02]} 31. Qb4 {[%emt 0:00:09]} Re6 {[%emt 0:00:01]} 32. Qb2 {[%emt 0:00:13]} Qd5 {[%emt 0:00:04]} 33. Qc2 {[%emt 0:00:05]} Qc4 {[%emt 0:00:03]} 34. Qe2 {[%emt 0:00:05]} Qc6 {[%emt 0:00:03]} 35. Qf3 {[%emt 0:00:02]} Qxf3 {[%emt 0:00:01]} 36. Rxf3 {[%emt 0:00:01]} Kg6 {[%emt 0:00:01]} 37. Rxf6+ {[%emt 0:00:03]} Rexf6 {[%emt 0:00:02]} 38. Rxf6+ {[%emt 0:00:01]} Rxf6 {[%emt 0:00:01]} 39. Bxf6 {[%emt 0:00:01]} Kxf6 {[%emt 0:00:01]} 40. Kf2 {[%emt 0:00:01]} Kf5 {[%emt 0:00:01]} 41. Ke3 {[%emt 0:00:01]} Ke6 {[%emt 0:00:01]} 42. Ke4 {[%emt 0:00:01]} Kd6 {[%emt 0:00:01]} 43. Kf5 {[%emt 0:00:01]} Kd5 {[%emt 0:00:01]} 44. Kg6 {[%emt 0:00:01]} Kc4 {[%emt 0:00:01]} 45. Kxh6 {[%emt 0:00:01]} Kd5 {[%emt 0:00:01]} 46. Kxg5 {[%emt 0:00:02]} Kc4 {[%emt 0:00:01]} 47. h4 {[%emt 0:00:01]} Kd5 {[%emt 0:00:02]} 48. h5 {[%emt 0:00:00]} Kc4 {[%emt 0:00:01]} 49. h6 {[%emt 0:00:02]} Kd5 {[%emt 0:00:01]} 50. h7 {[%emt 0:00:01]} Kc4 {[%emt 0:00:01]} 51. h8=Q {[%emt 0:00:02]} Kd5 {[%emt 0:00:01]} 52. Qe5+ {[%emt 0:00:01]} Kc6 {[%emt 0:00:01]} 53. Qc5+ {[%emt 0:00:01]} Kd7 {[%emt 0:00:01]} 54. Qb6 {[%emt 0:00:01]} Ke7 {[%emt 0:00:01]} 55. Qc6 {[%emt 0:00:01]} Kd8 {[%emt 0:00:02]} 56. Qb7 {[%emt 0:00:00]} Ke8 {[%emt 0:00:01]} 57. Kf6 {[%emt 0:00:01]} Kd8 {[%emt 0:00:01]} 58. Ke6 {[%emt 0:00:01]} Ke8 {[%emt 0:00:01]} 59. Qc8# {[%emt 0:00:01]} 1-0

[Event "3rd FIDE WCCC Blitz G10 2019"]
[Site "Minsk"]
[Date "2019.08.18"]
[Round "6.6"]
[White "Maklakova, Naomi"]
[Black "Toroptseva, Yevheniia"]
[Result "1-0"]
[ECO "E11"]
[WhiteElo "1221"]
[BlackElo "1480"]
[Annotator "NA"]
[PlyCount "56"]
[EventDate "2019.08.18"]
[EventType "swiss"]
[EventCountry "BLR"]
[SourceTitle "playchess.com"]
[Source "ChessBase"]
[SourceQuality "1"]
[TimeControl "300+2"]

1. Nf3 {[%emt 0:00:00]} e6 {[%emt 0:00:00]} 2. d4 {[%emt 0:00:01]} Nf6 {[%emt 0:00:02]} 3. c4 {[%emt 0:00:03]} Bb4+ {[%emt 0:00:03]} 4. Bd2 {[%emt 0:00:01]} Bxd2+ {[%emt 0:00:04]} 5. Nbxd2 {[%emt 0:00:08]} c6 {[%emt 0:00:05]} 6. e3 {[%emt 0:00:02]} d5 {[%emt 0:00:01]} 7. Bd3 {[%emt 0:00:06]} Na6 {[%emt 0:00:12]} 8. a3 {[%emt 0:00:03]} Nc7 {[%emt 0:00:02]} 9. O-O {[%emt 0:00:05]} O-O {[%emt 0:00:01]} 10. Ne5 {[%emt 0:00:12]} Nd7 {[%emt 0:00:37]} 11. f4 {[%emt 0:00:17]} Nxe5 {[%emt 0:00:11]} 12. fxe5 {[%emt 0:00:03]} Qg5 {[%emt 0:00:06]} 13. Rf3 {[%emt 0:00:10]} dxc4 {[%emt 0:00:18]} 14. Nxc4 {[%emt 0:00:06]} Nd5 {[%emt 0:00:01]} 15. Rg3 {[%emt 0:00:10]} Qe7 {[%emt 0:00:33]} 16. Qg4 {[%emt 0:00:18]} f5 {[%emt 0:00:18]} 17. exf6 {[%emt 0:00:09]} Nxf6 {[%emt 0:00:02]} 18. Qh4 {[%emt 0:00:12]} h6 {[%emt 0:00:59]} 19. Qxh6 {[%emt 0:00:12]} Rd8 {[%emt 0:00:15]} 20. Qg5 {[%emt 0:00:22]} Rd5 {[%emt 0:00:16]} 21. Ne5 {[%emt 0:00:16]} Bd7 {[%emt 0:00:48]} 22. Ng6 {[%emt 0:00:11]} Qf7 {[%emt 0:00:08]} 23. Ne5 {[%emt 0:00:06]} Qe7 {[%emt 0:00:03]} 24. Rf1 {[%emt 0:00:09]} b6 {[%emt 0:00:35]} 25. Rxf6 {[%emt 0:00:11]} Rxe5 {[%emt 0:00:05]} 26. Qxe5 {[%emt 0:00:04]} Re8 {[%emt 0:00:04]} 27. Rfg6 {[%emt 0:00:03]} Qf7 28. Rxg7+ Kf8 {[%emt 0:00:00]} 1-0

[Event "3rd FIDE WCCC Blitz G10 2019"]
[Site "Minsk"]
[Date "2019.08.18"]
[Round "7.1"]
[White "Khamdamova, Afruza"]
[Black "Satanovskaia, Evgeniia"]
[Result "1-0"]
[ECO "C18"]
[WhiteElo "1607"]
[BlackElo "1399"]
[Annotator "NA"]
[PlyCount "102"]
[EventDate "2019.08.18"]
[EventType "swiss"]
[EventCountry "BLR"]
[SourceTitle "playchess.com"]
[Source "ChessBase"]
[SourceQuality "1"]
[TimeControl "300+2"]

1. e4 {[%emt 0:00:00]} e6 {[%emt 0:00:00]} 2. d4 {[%emt 0:00:00]} d5 {[%emt 0:00:00]} 3. Nc3 {[%emt 0:00:00]} Bb4 {[%emt 0:00:00]} 4. e5 {[%emt 0:00:02]} c5 {[%emt 0:00:01]} 5. a3 {[%emt 0:00:01]} Bxc3+ {[%emt 0:00:01]} 6. bxc3 {[%emt 0:00:00]} Nc6 {[%emt 0:00:01]} 7. Nf3 {[%emt 0:00:02]} Nge7 {[%emt 0:00:05]} 8. Bd3 {[%emt 0:00:10]} h6 {[%emt 0:00:12]} 9. O-O {[%emt 0:00:06]} O-O {[%emt 0:00:01]} 10. a4 {[%emt 0:00:10]} Qa5 {[%emt 0:00:09]} 11. Bd2 {[%emt 0:00:09]} c4 {[%emt 0:00:11]} 12. Be2 {[%emt 0:00:01]} Bd7 {[%emt 0:00:06]} 13. Nh4 {[%emt 0:00:12]} Nf5 {[%emt 0:00:14]} 14. Nxf5 {[%emt 0:00:21]} exf5 {[%emt 0:00:01]} 15. f4 {[%emt 0:00:10]} Qd8 {[%emt 0:00:05]} 16. Qe1 {[%emt 0:00:04]} Kh7 {[%emt 0:00:20]} 17. Rb1 {[%emt 0:00:07]} b6 {[%emt 0:00:04]} 18. Bf3 {[%emt 0:00:14]} Ne7 {[%emt 0:00:30]} 19. Ra1 {[%emt 0:00:04]} Be6 {[%emt 0:00:12]} 20. Bc1 {[%emt 0:00:04]} Ng6 {[%emt 0:00:06]} 21. Ba3 {[%emt 0:00:17]} Rg8 {[%emt 0:00:16]} 22. g3 {[%emt 0:00:36]} Ne7 {[%emt 0:00:09]} 23. Kh1 {[%emt 0:00:20]} g5 24. Qe2 {[%emt 0:00:15]} g4 {[%emt 0:01:22]} 25. Bg2 {[%emt 0:00:03]} Qd7 {[%emt 0:00:03]} 26. Bb4 {[%emt 0:00:07]} a5 {[%emt 0:00:29]} 27. Ba3 {[%emt 0:00:08]} Nc6 {[%emt 0:00:04]} 28. Kg1 {[%emt 0:00:05]} Kg7 {[%emt 0:00:13]} 29. Kf2 {[%emt 0:00:06]} Rh8 {[%emt 0:00:02]} 30. Rh1 {[%emt 0:00:16]} Rh7 {[%emt 0:00:14]} 31. h3 {[%emt 0:00:02]} h5 {[%emt 0:00:21]} 32. hxg4 {[%emt 0:00:15]} fxg4 {[%emt 0:00:02]} 33. Rh4 {[%emt 0:00:09]} Bf5 {[%emt 0:00:06]} 34. Rah1 {[%emt 0:00:04]} Rah8 {[%emt 0:00:07]} 35. Ke1 {[%emt 0:00:30]} Bg6 {[%emt 0:00:01]} 36. Qf2 {[%emt 0:00:19]} Rd8 {[%emt 0:00:03]} 37. Kd1 {[%emt 0:00:08]} Ne7 {[%emt 0:00:00]} 38. Bxe7 {[%emt 0:00:06]} Qxe7 {[%emt 0:00:02]} 39. f5 {[%emt 0:00:01]} Bxf5 {[%emt 0:00:19]} 40. Qxf5 {[%emt 0:00:01]} Rdh8 {[%emt 0:00:02]} 41. Bxd5 {[%emt 0:00:05]} Kg8 {[%emt 0:00:02]} 42. Rxh5 {[%emt 0:00:08]} Rxh5 {[%emt 0:00:02]} 43. Rxh5 {[%emt 0:00:01]} Rxh5 44. Qxh5 {[%emt 0:00:01]} Kg7 {[%emt 0:00:05]} 45. Qxg4+ {[%emt 0:00:02]} Kf8 {[%emt 0:00:01]} 46. Qc8+ {[%emt 0:00:02]} Kg7 47. Qc6 {[%emt 0:00:04]} Qg5 {[%emt 0:00:05]} 48. Qf6+ {[%emt 0:00:03]} Qxf6 {[%emt 0:00:01]} 49. exf6+ {[%emt 0:00:00]} Kxf6 {[%emt 0:00:01]} 50. Bxc4 Kg5 {[%emt 0:00:01]} 51. Ke2 {[%emt 0:00:04]} f6 {[%emt 0:00:00]} 1-0

[Event "3rd FIDE WCCC Blitz G10 2019"]
[Site "Minsk"]
[Date "2019.08.18"]
[Round "7.2"]
[White "Shukhman, Anna"]
[Black "Huynh, Phuc Minh Phuong"]
[Result "1-0"]
[ECO "C68"]
[WhiteElo "1806"]
[BlackElo "1254"]
[Annotator "NA"]
[PlyCount "64"]
[EventDate "2019.08.18"]
[EventType "swiss"]
[EventCountry "BLR"]
[SourceTitle "playchess.com"]
[Source "ChessBase"]
[SourceQuality "1"]
[TimeControl "300+2"]

1. e4 {[%emt 0:00:00]} e5 {[%emt 0:00:00]} 2. Nf3 {[%emt 0:00:00]} Nc6 {[%emt 0:00:00]} 3. Bb5 {[%emt 0:00:02]} a6 {[%emt 0:00:01]} 4. Bxc6 {[%emt 0:00:01]} dxc6 {[%emt 0:00:01]} 5. O-O {[%emt 0:00:02]} Bd6 {[%emt 0:00:03]} 6. d4 {[%emt 0:00:01]} exd4 {[%emt 0:00:14]} 7. Qxd4 {[%emt 0:00:02]} f6 {[%emt 0:00:03]} 8. Be3 {[%emt 0:00:02]} Ne7 {[%emt 0:00:05]} 9. Nbd2 {[%emt 0:00:04]} Be6 {[%emt 0:00:10]} 10. Rad1 {[%emt 0:00:23]} Qd7 {[%emt 0:00:11]} 11. Qc3 {[%emt 0:00:10]} O-O-O {[%emt 0:00:05]} 12. Nc4 {[%emt 0:00:04]} Kb8 {[%emt 0:00:11]} 13. Nxd6 {[%emt 0:00:47]} cxd6 {[%emt 0:00:02]} 14. Bf4 {[%emt 0:00:04]} Qc7 {[%emt 0:00:14]} 15. Nd4 {[%emt 0:00:03]} Bf7 {[%emt 0:00:05]} 16. Rfe1 {[%emt 0:00:12]} Ng6 {[%emt 0:00:02]} 17. Bg3 {[%emt 0:00:03]} Ne5 {[%emt 0:00:08]} 18. f4 {[%emt 0:00:21]} Ng6 {[%emt 0:00:05]} 19. Nf5 {[%emt 0:00:04]} Rhg8 {[%emt 0:00:47]} 20. h4 {[%emt 0:00:24]} h5 {[%emt 0:00:31]} 21. Kh2 {[%emt 0:00:08]} Ne7 {[%emt 0:00:07]} 22. Nxd6 {[%emt 0:00:11]} Be6 {[%emt 0:00:17]} 23. f5 {[%emt 0:00:06]} Ka8 {[%emt 0:00:23]} 24. fxe6 {[%emt 0:00:03]} Qb6 {[%emt 0:00:15]} 25. Nc4 {[%emt 0:00:19]} Qa7 {[%emt 0:00:17]} 26. Qb4 {[%emt 0:00:07]} Nc8 {[%emt 0:00:07]} 27. e7 {[%emt 0:00:07]} Rde8 {[%emt 0:00:16]} 28. Rd7 {[%emt 0:00:02]} g5 {[%emt 0:00:15]} 29. Red1 {[%emt 0:00:14]} c5 {[%emt 0:00:16]} 30. Qb3 {[%emt 0:00:06]} gxh4 {[%emt 0:00:03]} 31. Bf4 {[%emt 0:00:06]} Rg4 {[%emt 0:00:45]} 32. Rd8 {[%emt 0:00:27]} b6 1-0

[Event "3rd FIDE WCCC Blitz G10 2019"]
[Site "Minsk"]
[Date "2019.08.18"]
[Round "7.3"]
[White "Ho, Ngoc Vy"]
[Black "Nurgaliyeva, Zarina"]
[Result "1/2-1/2"]
[ECO "E11"]
[WhiteElo "1327"]
[BlackElo "1474"]
[Annotator "NA"]
[PlyCount "78"]
[EventDate "2019.08.18"]
[EventType "swiss"]
[EventCountry "BLR"]
[SourceTitle "playchess.com"]
[Source "ChessBase"]
[SourceQuality "1"]
[TimeControl "300+2"]

1. d4 {[%emt 0:00:00]} Nf6 {[%emt 0:00:00]} 2. c4 {[%emt 0:00:00]} e6 {[%emt 0:00:00]} 3. Nf3 {[%emt 0:00:01]} Bb4+ {[%emt 0:00:01]} 4. Bd2 {[%emt 0:00:02]} a5 {[%emt 0:00:01]} 5. g3 {[%emt 0:00:01]} d6 {[%emt 0:00:02]} 6. Bg2 {[%emt 0:00:02]} Nbd7 {[%emt 0:00:03]} 7. O-O {[%emt 0:00:02]} e5 {[%emt 0:00:14]} 8. Qc2 {[%emt 0:00:06]} O-O {[%emt 0:00:06]} 9. e4 {[%emt 0:00:02]} Qe7 {[%emt 0:00:10]} 10. a3 {[%emt 0:00:01]} Bxd2 {[%emt 0:00:02]} 11. Nbxd2 {[%emt 0:00:02]} a4 {[%emt 0:00:08]} 12. b3 {[%emt 0:00:02]} axb3 {[%emt 0:00:05]} 13. Nxb3 {[%emt 0:00:01]} exd4 {[%emt 0:00:04]} 14. Nfxd4 {[%emt 0:00:02]} Nb6 {[%emt 0:00:27]} 15. Rfe1 {[%emt 0:00:13]} Be6 {[%emt 0:00:04]} 16. Nf5 {[%emt 0:00:10]} Qd7 {[%emt 0:00:13]} 17. Nd2 {[%emt 0:00:16]} Qa4 {[%emt 0:00:18]} 18. Ne7+ {[%emt 0:00:04]} Kh8 {[%emt 0:00:02]} 19. Qxa4 {[%emt 0:00:20]} Rxa4 {[%emt 0:00:02]} 20. Nd5 {[%emt 0:01:30]} Nxc4 {[%emt 0:00:31]} 21. Nxc4 {[%emt 0:00:04]} Rxc4 {[%emt 0:00:01]} 22. Rab1 {[%emt 0:00:05]} b6 {[%emt 0:00:28]} 23. Rec1 {[%emt 0:00:02]} Rxc1+ {[%emt 0:00:21]} 24. Rxc1 {[%emt 0:00:01]} Bxd5 {[%emt 0:00:08]} 25. exd5 {[%emt 0:00:01]} Rc8 {[%emt 0:00:03]} 26. Bh3 {[%emt 0:00:01]} Rf8 {[%emt 0:00:18]} 27. Rxc7 {[%emt 0:00:02]} Nxd5 {[%emt 0:00:06]} 28. Rd7 {[%emt 0:00:00]} Nf6 {[%emt 0:00:39]} 29. Rxd6 {[%emt 0:00:03]} b5 {[%emt 0:00:12]} 30. Rb6 {[%emt 0:00:02]} Ra8 {[%emt 0:00:24]} 31. Rxb5 Rxa3 {[%emt 0:00:05]} 32. Rb8+ {[%emt 0:00:26]} Ng8 {[%emt 0:00:02]} 33. Rb7 {[%emt 0:00:01]} Rf3 {[%emt 0:00:10]} 34. Kg2 {[%emt 0:00:01]} Rf6 {[%emt 0:00:03]} 35. Bd7 {[%emt 0:00:06]} g6 {[%emt 0:00:03]} 36. g4 {[%emt 0:00:08]} h6 {[%emt 0:00:13]} 37. h4 {[%emt 0:00:02]} Kg7 {[%emt 0:00:20]} 38. Be8 {[%emt 0:00:06]} Rf4 39. Kg3 g5 {time} 1/2-1/2

[Event "3rd FIDE WCCC Blitz G10 2019"]
[Site "Minsk"]
[Date "2019.08.18"]
[Round "7.4"]
[White "Maklakova, Naomi"]
[Black "Fedorova, Olesya"]
[Result "1/2-1/2"]
[ECO "A48"]
[WhiteElo "1221"]
[BlackElo "1524"]
[Annotator "NA"]
[PlyCount "123"]
[EventDate "2019.08.18"]
[EventType "swiss"]
[EventCountry "BLR"]
[SourceTitle "playchess.com"]
[Source "ChessBase"]
[SourceQuality "1"]
[TimeControl "300+2"]

1. Nf3 {[%emt 0:00:00]} Nf6 {[%emt 0:00:00]} 2. d4 {[%emt 0:00:00]} g6 {[%emt 0:00:00]} 3. c4 {[%emt 0:00:02]} Bg7 {[%emt 0:00:01]} 4. e3 {[%emt 0:00:01]} O-O {[%emt 0:00:02]} 5. Bd3 {[%emt 0:00:03]} d6 {[%emt 0:00:01]} 6. O-O {[%emt 0:00:03]} c5 {[%emt 0:00:01]} 7. b3 {[%emt 0:00:07]} Nc6 {[%emt 0:00:03]} 8. Bb2 {[%emt 0:00:04]} Bg4 {[%emt 0:00:07]} 9. Nbd2 {[%emt 0:00:03]} h6 {[%emt 0:00:09]} 10. Qc2 {[%emt 0:00:09]} Nb4 {[%emt 0:00:01]} 11. Qc3 {[%emt 0:00:03]} Nxd3 12. Qxd3 {[%emt 0:00:02]} cxd4 {[%emt 0:00:18]} 13. Nxd4 {[%emt 0:00:04]} Nd7 {[%emt 0:00:21]} 14. h3 {[%emt 0:00:06]} Nc5 {[%emt 0:00:07]} 15. Qc2 {[%emt 0:00:13]} Bd7 {[%emt 0:00:02]} 16. b4 {[%emt 0:00:10]} Na4 {[%emt 0:00:11]} 17. b5 {[%emt 0:00:25]} Nxb2 {[%emt 0:00:13]} 18. Qxb2 {[%emt 0:00:02]} Rc8 {[%emt 0:00:23]} 19. Qa3 {[%emt 0:00:26]} Qb6 {[%emt 0:00:10]} 20. Qd3 {[%emt 0:00:10]} e5 {[%emt 0:00:15]} 21. N4b3 {[%emt 0:00:16]} e4 {[%emt 0:00:08]} 22. Nxe4 {[%emt 0:00:16]} Bxa1 {[%emt 0:00:09]} 23. Rxa1 {[%emt 0:00:02]} d5 {[%emt 0:00:32]} 24. Qxd5 {[%emt 0:00:13]} Qe6 {[%emt 0:00:46]} 25. Qxe6 {[%emt 0:00:06]} Bxe6 {[%emt 0:00:02]} 26. c5 {[%emt 0:00:06]} Bxb3 {[%emt 0:00:10]} 27. axb3 {[%emt 0:00:02]} f5 {[%emt 0:00:01]} 28. Nd6 {[%emt 0:00:14]} Rxc5 {[%emt 0:00:04]} 29. Nxb7 {[%emt 0:00:03]} Rxb5 {[%emt 0:00:02]} 30. Rxa7 {[%emt 0:00:16]} Rxb3 {[%emt 0:00:24]} 31. Nd6 {[%emt 0:00:09]} Rb6 {[%emt 0:00:11]} 32. Nc4 {[%emt 0:00:04]} Re6 {[%emt 0:00:12]} 33. Rd7 {[%emt 0:00:10]} Rf7 {[%emt 0:00:07]} 34. Rd8+ {[%emt 0:00:13]} Kg7 {[%emt 0:00:10]} 35. Nd6 {[%emt 0:00:21]} Rf8 {[%emt 0:00:03]} 36. Rd7+ {[%emt 0:00:02]} Kf6 {[%emt 0:00:10]} 37. Nc4 {[%emt 0:00:13]} Rc8 {[%emt 0:00:06]} 38. Nd2 {[%emt 0:00:04]} Rc1+ {[%emt 0:00:07]} 39. Kh2 {[%emt 0:00:04]} Rc2 {[%emt 0:00:01]} 40. Kg3 {[%emt 0:00:13]} g5 {[%emt 0:00:07]} 41. Nf3 {[%emt 0:00:11]} Re7 {[%emt 0:00:09]} 42. Rd6+ {[%emt 0:00:01]} Kg7 {[%emt 0:00:00]} 43. h4 {[%emt 0:00:06]} gxh4+ {[%emt 0:00:02]} 44. Nxh4 {[%emt 0:00:02]} Rc5 {[%emt 0:00:03]} 45. Nf3 {[%emt 0:00:05]} Rf7 {[%emt 0:00:03]} 46. Rd8 {[%emt 0:00:05]} Kf6 {[%emt 0:00:07]} 47. Rh8 {[%emt 0:00:02]} Kg7 {[%emt 0:00:02]} 48. Rd8 {[%emt 0:00:02]} Rf8 {[%emt 0:00:01]} 49. Rd7+ {[%emt 0:00:02]} Rf7 {[%emt 0:00:02]} 50. Rd6 {[%emt 0:00:03]} Rf6 {[%emt 0:00:02]} 51. Rd7+ {[%emt 0:00:03]} Rf7 {[%emt 0:00:02]} 52. Rd8 {[%emt 0:00:09]} Rf8 {[%emt 0:00:01]} 53. Rd7+ {[%emt 0:00:03]} Rf7 {[%emt 0:00:01]} 54. Rd8 {[%emt 0:00:01]} Rf8 {[%emt 0:00:06]} 55. Rd7+ {[%emt 0:00:02]} Rf7 {[%emt 0:00:00]} 56. Rd6 {[%emt 0:00:02]} Rf6 {[%emt 0:00:01]} 57. Rd7+ {[%emt 0:00:01]} Rf7 {[%emt 0:00:01]} 58. Rd6 {[%emt 0:00:10]} Rf6 {[%emt 0:00:01]} 59. Rd7+ {[%emt 0:00:01]} Rf7 {[%emt 0:00:01]} 60. Rd6 {[%emt 0:00:03]} Rf6 {[%emt 0:00:01]} 61. Rd7+ {[%emt 0:00:01]} Rf7 {[%emt 0:00:04]} 62. Rd6 {[%emt 0:00:03]} 1/2-1/2

[Event "3rd FIDE WCCC Blitz G10 2019"]
[Site "Minsk"]
[Date "2019.08.18"]
[Round "7.6"]
[White "Tsareva, Darya"]
[Black "Sidorenja, Milena"]
[Result "0-1"]
[ECO "B01"]
[WhiteElo "1177"]
[BlackElo "1573"]
[Annotator "NA"]
[PlyCount "152"]
[EventDate "2019.08.18"]
[EventType "swiss"]
[EventCountry "BLR"]
[SourceTitle "playchess.com"]
[Source "ChessBase"]
[SourceQuality "1"]
[TimeControl "300+2"]

1. e4 {[%emt 0:00:00]} d5 {[%emt 0:00:00]} 2. exd5 {[%emt 0:00:01]} Qxd5 {[%emt 0:00:00]} 3. Nc3 {[%emt 0:00:01]} Qa5 {[%emt 0:00:01]} 4. d4 {[%emt 0:00:01]} Nf6 {[%emt 0:00:01]} 5. Nf3 {[%emt 0:00:06]} Bg4 {[%emt 0:00:02]} 6. Be2 {[%emt 0:00:03]} Nc6 {[%emt 0:00:02]} 7. Be3 {[%emt 0:00:05]} O-O-O {[%emt 0:00:03]} 8. Qd2 {[%emt 0:00:04]} e5 {[%emt 0:00:08]} 9. O-O-O {[%emt 0:00:21]} Bb4 {[%emt 0:00:28]} 10. a3 {[%emt 0:00:09]} Ne4 {[%emt 0:01:05]} 11. Qd3 {[%emt 0:00:41]} Nxc3 {[%emt 0:01:08]} 12. axb4 {[%emt 0:01:53]} Na2+ {[%emt 0:00:11]} 13. Kb1 {[%emt 0:00:09]} Ncxb4 {[%emt 0:01:17]} 14. Qb3 {[%emt 0:00:15]} Be6 {[%emt 0:00:10]} 15. Qa3 {[%emt 0:00:19]} Qxa3 {[%emt 0:00:38]} 16. bxa3 {[%emt 0:00:02]} Nc3+ {[%emt 0:00:01]} 17. Kb2 {[%emt 0:00:10]} Nxd1+ {[%emt 0:00:02]} 18. Rxd1 {[%emt 0:00:02]} exd4 {[%emt 0:00:05]} 19. Nxd4 {[%emt 0:00:11]} Nd5 {[%emt 0:00:02]} 20. Nxe6 {[%emt 0:00:08]} fxe6 {[%emt 0:00:03]} 21. Bd4 {[%emt 0:00:27]} Rhf8 {[%emt 0:00:04]} 22. f3 {[%emt 0:00:04]} g6 {[%emt 0:00:01]} 23. Bxa7 b6 {[%emt 0:00:06]} 24. Ba6+ {[%emt 0:00:05]} Kd7 {[%emt 0:00:01]} 25. c4 {[%emt 0:00:01]} Ke7 {[%emt 0:00:02]} 26. cxd5 {[%emt 0:00:02]} exd5 {[%emt 0:00:01]} 27. Bb7 {[%emt 0:00:02]} Ke6 {[%emt 0:00:03]} 28. a4 {[%emt 0:00:01]} Rf5 {[%emt 0:00:01]} 29. a5 {[%emt 0:00:02]} Re5 {[%emt 0:00:02]} 30. axb6 {[%emt 0:00:04]} cxb6 {[%emt 0:00:01]} 31. Bxb6 {[%emt 0:00:03]} Rb8 {[%emt 0:00:00]} 32. Kc3 {[%emt 0:00:01]} Rxb7 {[%emt 0:00:03]} 33. Bf2 {[%emt 0:00:06]} Rg5 {[%emt 0:00:01]} 34. g3 {[%emt 0:00:01]} Rh5 {[%emt 0:00:02]} 35. h4 {[%emt 0:00:01]} Rf5 {[%emt 0:00:01]} 36. f4 {[%emt 0:00:02]} Rd7 {[%emt 0:00:01]} 37. Bd4 {[%emt 0:00:04]} Rf8 {[%emt 0:00:02]} 38. Be5 {[%emt 0:00:01]} Rc8+ {[%emt 0:00:01]} 39. Kd4 {[%emt 0:00:01]} Rc4+ {[%emt 0:00:01]} 40. Ke3 {[%emt 0:00:01]} Re4+ {[%emt 0:00:02]} 41. Kf3 {[%emt 0:00:01]} Rc4 {[%emt 0:00:01]} 42. Ke3 {[%emt 0:00:01]} Ra4 {[%emt 0:00:01]} 43. Kf3 {[%emt 0:00:01]} Ra3+ {[%emt 0:00:01]} 44. Kg4 {[%emt 0:00:01]} d4 {[%emt 0:00:01]} 45. Rxd4 {[%emt 0:00:04]} h5+ {[%emt 0:00:02]} 46. Kh3 {[%emt 0:00:02]} Rxd4 {[%emt 0:00:02]} 47. Bxd4 {[%emt 0:00:01]} Rd3 {[%emt 0:00:02]} 48. Be5 Kf5 {[%emt 0:00:01]} 49. Bc7 {[%emt 0:00:06]} Rc3 {[%emt 0:00:03]} 50. Be5 {[%emt 0:00:02]} Rc2 {[%emt 0:00:02]} 51. Bd6 {[%emt 0:00:02]} Ke4 {[%emt 0:00:03]} 52. Ba3 {[%emt 0:00:07]} Kf3 {[%emt 0:00:02]} 53. Bd6 {[%emt 0:00:07]} Rc1 {[%emt 0:00:01]} 54. Kh2 {[%emt 0:00:01]} Rc2+ {[%emt 0:00:03]} 55. Kh3 {[%emt 0:00:01]} Rg2 {[%emt 0:00:02]} 56. f5 {[%emt 0:00:03]} gxf5 {[%emt 0:00:02]} 57. Bf4 {[%emt 0:00:02]} Re2 {[%emt 0:00:03]} 58. Bd6 {[%emt 0:00:02]} Re4 {[%emt 0:00:04]} 59. Bc7 {[%emt 0:00:03]} Re2 {[%emt 0:00:05]} 60. Bf4 {[%emt 0:00:02]} Rf2 {[%emt 0:00:02]} 61. Be5 {[%emt 0:00:03]} Rf1 {[%emt 0:00:02]} 62. Kh2 {[%emt 0:00:02]} Re1 {[%emt 0:00:02]} 63. Bf4 {[%emt 0:00:01]} Re2+ {[%emt 0:00:01]} 64. Kh3 {[%emt 0:00:01]} Re4 {[%emt 0:00:02]} 65. Bd6 {[%emt 0:00:02]} Rg4 {[%emt 0:00:02]} 66. Bc7 {[%emt 0:00:03]} Rg6 {[%emt 0:00:07]} 67. Bf4 {[%emt 0:00:01]} Rg4 {[%emt 0:00:01]} 68. Bd6 {[%emt 0:00:01]} Kf2 {[%emt 0:00:02]} 69. Bf4 {[%emt 0:00:02]} Kf3 {[%emt 0:00:02]} 70. Be5 {[%emt 0:00:01]} Re4 {[%emt 0:00:02]} 71. Bd6 {[%emt 0:00:02]} Kf2 {[%emt 0:00:02]} 72. Bc5+ {[%emt 0:00:01]} Kf1 {[%emt 0:00:03]} 73. Bd6 {[%emt 0:00:02]} Re2 {[%emt 0:00:01]} 74. Bf4 {[%emt 0:00:04]} Kg1 {[%emt 0:00:02]} 75. g4 {[%emt 0:00:03]} fxg4+ {[%emt 0:00:03]} 76. Kg3 {[%emt 0:00:02]} Rg2# {[%emt 0:00:02]} 0-1